[Event "45th FIDE Womens Olympiad 2024"]
[Site "Budapest"]
[Date "2024.09.15"]
[Round "5.12"]
[White "Sargsyan, Anna M."]
[Black "Lu, Miaoyi"]
[Result "1-0"]
[ECO "C54"]
[WhiteElo "2364"]
[BlackElo "2438"]
[Annotator "TA"]
[PlyCount "75"]
[EventDate "2024.09.05"]
[EventType "team-tourn"]
[EventCountry "HUN"]
[SourceTitle "playchess.com"]
[Source "ChessBase"]
[SourceQuality "1"]
[WhiteTeam "Armenia"]
[BlackTeam "China"]
[WhiteTeamCountry "ARM"]
[BlackTeamCountry "CHN"]
[TimeControl "40/5400+30:1800+30"]

{[%evp 12,75,16,10,10,8,20,7,13,6,14,0,7,0,0,0,2,-8,-1,-18,-21,-50,-38,-26,-36,-52,-35,-86,-71,-79,-91,-78,12,25,26,29,11,0,0,0,52,55,432,400,1048,1041,1033,1020,29984,29981,29983,278,262,253,761,389,782,759,822,603,29984,29985,29991,29992,29998,29999]} 1. e4 {[%emt 0:03:14]} e5 {[%emt 0:00:03]} 2. Nf3 {[%emt 0:00:06]} Nc6 {[%emt 0:00:06]} 3. Bc4 {[%emt 0:00:06]} Nf6 {[%emt 0:00:06]} 4. d3 {[%emt 0:00:06]} Bc5 {[%emt 0:00:26]} 5. c3 {[%emt 0:00:13]} d6 {[%emt 0:00:08]} 6. O-O {[%emt 0:00:20]} O-O {[%emt 0:00:03]} 7. Re1 {[%emt 0:00:11]} a5 {[%emt 0:00:04]} 8. h3 {[%emt 0:05:54]} Ba7 {[%emt 0:00:04]} 9. Bb3 {[%emt 0:00:10]} h6 {[%emt 0:01:16] The position is equal.} 10. Nbd2 {[%emt 0:00:54]} Be6 {[%emt 0:00:29]} 11. Bc2 {[%emt 0:06:13]} Re8 {[%emt 0:00:02]} 12. Nf1 {[%emt 0:00:50]} d5 {[%emt 0:00:03]} 13. exd5 {[%emt 0:01:49]} Qxd5 {[%emt 0:00:02]} 14. Be3 {[%emt 0:00:30]} Bxe3 {[%emt 0:05:42]} 15. Nxe3 {[%emt 0:03:55]} (15. Rxe3 {simplifies} Qd6 16. Re1 Nd5 17. d4) 15... Qb5 {[%emt 0:11:33]} 16. Ba4 {[%emt 0:09:32]} Qxb2 {[%emt 0:03:20]} 17. Rb1 {[%emt 0:01:13]} Qxc3 {[%emt 0:01:00]} 18. Rxb7 {[%emt 0:01:00]} Re7 {[%emt 0:23:16]} (18... Bxa2 $2 19. Qa1 (19. Rxc7 Rac8 $16) 19... Qxa1 (19... Qxd3 $2 20. Bxc6 Qa6 21. Rxc7 $18) 20. Rxa1 $18) (18... Nb4 $5 19. Qc1 (19. Bxe8 Nxe8 20. Rb5 Nxd3 $11) 19... Qxc1 (19... Qxd3 20. Bb5 $17) 20. Rxc1 Nxd3 21. Rcxc7 Reb8 22. Rxb8+ Rxb8 $11) 19. Qb1 {[%emt 0:11:39]} (19. a3 $15) 19... Nb4 $17 {[%emt 0:12:18][%cal Oe6c8]} 20. Rc1 {[%emt 0:02:29] [#]} Qa3 {[%emt 0:08:42]} (20... Qxd3 $2 21. Rxb4 (21. Nxe5 $2 Qxb1 22. Rxb1 Bxa2 $19) 21... Qa3 22. Nc2 (22. Rb8+ Rxb8 23. Qxb8+ Ne8 $11) 22... Qxa2 23. Qxa2 Bxa2 24. Rb2 $18) (20... Bxa2 21. Nf5 Re6 (21... Qxd3 $2 22. Qxd3 Nxd3 23. Nxe7+ Kf8 24. Rcxc7 $18) 22. Rxc3 $11) 21. Bb3 {[%emt 0:01:16] [#]} Nxa2 {[%emt 0:13:37]} (21... Bxb3 $1 $17 22. Nf5 Rd7 (22... Bxa2 23. Nxe7+ Kh8 24. Qa1 $16) 23. axb3 c5 (23... Nxd3 24. Rcxc7 Rxc7 25. Rxc7 $15) 24. Rxd7 Nxd7) 22. Rc6 $1 $11 {[%emt 0:07:31][%cal Oc6e6] Black must now prevent Rxe6!} Bxb3 {[%emt 0:07:33]} (22... Nb4 $2 23. Rxe6 Rxe6 (23... fxe6 $2 24. Nc4 $18) 24. Nc4 $18) 23. Rxb3 {[%emt 0:00:09]} Qa4 {[%emt 0:00:02] [#]} 24. Rxf6 {[%emt 0:11:58]} gxf6 {[%emt 0:00:18]} 25. Nf5 {[%emt 0:01:17][%csl LRe7,LRh6]} (25. Nd5 Re6 26. Rb2 Qd7 (26... Nb4 27. Nxc7 Qc6 28. Nxa8 $15) 27. Qxa2 Kh8 $14) 25... Ree8 {[%emt 0:05:54]} (25... Kf8 $11) 26. d4 $1 $14 {[%emt 0:02:40][%cal Ob1e4] Strongly threatening Qe4!} exd4 $2 {[%emt 0:02:23][%mdl 8192] Loses the game.} (26... Qc4 $1 $14 27. Kh2 (27. Qxa2 a4 $17) 27... Qc1 28. Qxa2 Qf4+ 29. Ng3 a4) 27. N3xd4 $18 {[%emt 0:00:59]} Rad8 {[%emt 0:03:39]} (27... Kh8 $142 28. Qd1 Qc4) 28. Nxh6+ {[%emt 0:02:29] Excellent horsemanship.} Kf8 {[%emt 0:00:41] [#]} 29. Qh7 $1 {[%emt 0:00:27][%csl Gh6][%cal Rh7f7]} Re1+ {[%emt 0:00:52]} (29... Qc4 30. Rd3) 30. Kh2 {[%emt 0:00:09][%csl Gh6][%cal Rh7f7]} Qc4 {[%emt 0:00:33]} 31. Nhf5 $2 {[%emt 0:13:20]} (31. Rd3 {mates} Rd6 32. Qh8+ Ke7 33. Qc8 (33. Ndf5+ Kd7 $11) 33... Rh1+ 34. Kxh1 Qc1+ 35. Rd1 (35. Kh2 Qf4+ 36. Kg1 Qc1+) 35... Qxd1+ 36. Kh2) 31... Ke8 {[%emt 0:00:12][%cal Oa2b4]} 32. Rd3 $40 {[%emt 0:00:18][%mdl 128] White goes for the king.} Kd7 $2 {[%emt 0:01:24]} (32... Rd6 33. Nxd6+ cxd6) 33. Ne6+ {[%emt 0:03:47]} Kxe6 $2 {[%emt 0:00:02]} (33... Qxd3 34. Nc5+ (34. Nxd8 $2 {is the wrong capture.} Kxd8 35. Qh8+ Kd7 $19) 34... Kc6 35. Nxd3 Rxd3 36. Ne7+ (36. Qxf7 Nb4 $18) 36... Rxe7) 34. Rxd8 {[%emt 0:00:07]} Qf4+ {[%emt 0:01:01]} 35. Ng3 {[%emt 0:00:05]} Re5 {[%emt 0:00:29]} 36. Qc2 {[%emt 0:01:49][%csl LRa2,LRc7] White mates.} Nb4 {[%emt 0:00:22]} 37. Qxc7 {[%emt 0:00:14][%csl Gd8][%cal Rc7d7]} Re4 {[%emt 0:00:41]} 38. Qd7+ {[%emt 0:00:11] Weighted Error Value: White=0.33/Black=0.72.  Loses game:     	---       	Black=1      Mistake:       	White=1     	Black=5      Inaccurate:     	White=2     	---        OK:         	White=3     	Black=11     Best:        	White=3     	Black=2      Strong:       	White=2     	---} 1-0

[Event "45th FIDE Womens Olympiad 2024"]
[Site "Budapest"]
[Date "2024.09.15"]
[Round "5.13"]
[White "Munkhzul, Turmunkh"]
[Black "Tokhirjonova, Gulrukhbegim"]
[Result "1-0"]
[ECO "C68"]
[WhiteElo "2256"]
[BlackElo "2380"]
[Annotator "TA"]
[PlyCount "132"]
[EventDate "2024.09.05"]
[EventType "team-tourn"]
[EventCountry "HUN"]
[SourceTitle "playchess.com"]
[Source "ChessBase"]
[SourceQuality "1"]
[WhiteTeam "Mongolia"]
[BlackTeam "United States of America"]
[WhiteTeamCountry "MGL"]
[BlackTeamCountry "USA"]
[TimeControl "40/5400+30:1800+30"]

{[%evp 21,132,-4,0,0,0,0,0,-7,0,0,0,0,26,2,8,4,0,2,2,5,37,9,3,7,18,7,6,6,7,18,19,7,10,15,11,0,10,0,0,0,0,0,0,0,0,0,0,-18,0,-46,-41,-37,-9,-9,-9,-9,0,0,0,0,0,0,0,0,0,0,0,0,0,0,0,0,0,0,0,0,8,8,8,10,19,27,18,33,375,366,359,359,592,587,1161,1104,1580,1458,1245,1099,3134,2347,5057,4598,29949,12298,29958,29961,29961,29960,29960,29960,29963,29960,12359,12359,4618]} 1. e4 {[%emt 0:00:02]} e5 {[%emt 0:00:31]} 2. Nf3 {[%emt 0:00:12]} Nc6 {[%emt 0:00:23]} 3. Bb5 {[%emt 0:00:13]} a6 {[%emt 0:00:15]} 4. Bxc6 {[%emt 0:00:21]} dxc6 {[%emt 0:00:20]} 5. Nc3 {[%emt 0:00:14]} f6 {[%emt 0:00:24]} 6. d4 {[%emt 0:00:26]} exd4 {[%emt 0:00:56]} 7. Qxd4 {[%emt 0:00:05]} Qxd4 {[%emt 0:00:20]} 8. Nxd4 {[%emt 0:00:05]} Bd7 {[%emt 0:00:40]} 9. Be3 {[%emt 0:00:42] 9.Bf4 is not played anymore.} O-O-O {[%emt 0:00:35] C68: Ruy Lopez: Exchange Variation, sidelines.} 10. f3 {[%emt 0:00:35]} Ne7 {[%emt 0:01:06]} 11. Kf2 {[%emt 0:01:13]} Ng6 {[%emt 0:00:27]} 12. Rad1 {[%emt 0:01:28]} h5 {[%emt 0:01:05]} 13. h4 {[%emt 0:05:05]} Re8 $146 {[%emt 0:03:04]} ({Predecessor:} 13... Bd6 14. Nb3 Ne5 15. Bc5 Nc4 16. Bxd6 cxd6 17. Nd2 Ne5 18. Nf1 Kc7 19. Ne3 Be6 {½-½ Aronian,L (2722)-Caruana,F (2804) American Cup Champ 2024 (2.2)}) 14. Nde2 {[%emt 0:05:00]} Ne5 {[%emt 0:02:08]} 15. b3 {[%emt 0:01:17]} g6 {[%emt 0:02:14]} 16. Nf4 {[%emt 0:07:02]} Bd6 {[%emt 0:03:34]} 17. Nd3 {[%emt 0:02:37]} (17. Na4 $5) 17... Rhf8 {[%emt 0:33:31]} 18. Nxe5 {[%emt 0:05:15]} Bxe5 {[%emt 0:00:27]} 19. Na4 {[%emt 0:00:33]} f5 {[%emt 0:08:28]} ({But not} 19... b6 $6 20. Bxb6 f5 21. Bc5 $16) 20. Nc5 {[%emt 0:01:55]} Be6 {[%emt 0:00:32]} 21. Nxe6 {[%emt 0:01:59]} Rxe6 {[%emt 0:00:12]} 22. exf5 {[%emt 0:00:32]} gxf5 {[%emt 0:00:51]} 23. Bd4 {[%emt 0:05:37]} Bd6 {[%emt 0:00:56]} 24. Rhe1 {[%emt 0:00:48]} Rg6 {[%emt 0:04:24]} 25. Kf1 {[%emt 0:01:04]} Rfg8 {[%emt 0:05:08]} 26. Re2 {[%emt 0:01:57]} Bg3 {[%emt 0:09:51]} 27. Bf2 {[%emt 0:00:37]} Bf4 {[%emt 0:02:17]} 28. Rde1 {[%emt 0:03:15]} Bd6 {[%emt 0:04:23]} 29. Re8+ {[%emt 0:02:00]} Kd7 {[%emt 0:00:11]} 30. Rxg8 {[%emt 0:00:08]} Rxg8 {[%emt 0:00:07]} 31. Bd4 {[%emt 0:02:13]} c5 {[%emt 0:01:24]} 32. Bf6 {[%emt 0:01:33]} b5 {[%emt 0:00:28]} 33. c4 {[%emt 0:02:56]} Rb8 {[%emt 0:01:26]} 34. Ke2 {[%emt 0:04:41]} Ke6 {[%emt 0:01:29]} 35. Bg5 {[%emt 0:01:13]} (35. Bc3 $11 {might be stronger.}) 35... bxc4 $1 $15 {[%emt 0:07:10]} 36. bxc4 {[%emt 0:00:28]} f4 {[%emt 0:01:34]} 37. Kd3+ {[%emt 0:02:49]} Kf5 {[%emt 0:00:10]} 38. Re2 {[%emt 0:00:31]} Be5 {[%emt 0:01:38]} 39. Be7 {[%emt 0:03:17]} Bd4 {[%emt 0:00:15]} 40. Bg5 {[%emt 0:03:27]} a5 {[%emt 0:02:03]} 41. Re4 {[%emt 0:31:04]} Be5 {[%emt 0:32:49]} 42. Be7 {[%emt 0:00:58]} Rg8 {[%emt 0:00:00]} 43. Re2 {[%emt 0:00:00]} Bd4 {[%emt 0:00:00]} 44. Bg5 {[%emt 0:00:00]} Be3 {[%emt 0:00:00]} 45. g3 {[%emt 0:00:00]} Rg6 {[%emt 0:00:00]} 46. Rg2 {[%emt 0:00:00]} Rd6+ {[%emt 0:00:00]} 47. Kc2 {[%emt 0:00:00]} Rd4 {[%emt 0:00:21]} 48. Kc3 {[%emt 0:00:00]} Rd1 {[%emt 0:01:37]} 49. Bxf4 {[%emt 0:00:00]} Bxf4 {[%emt 0:02:45]} 50. gxf4 {[%emt 0:00:00]} Rc1+ {[%emt 0:00:22]} 51. Kd3 {[%emt 0:00:00]} Kxf4 {[%emt 0:00:22]} 52. Rg5 {[%emt 0:00:00]} Ra1 $2 {[%emt 0:00:42][%mdl 8192]} (52... Rd1+ $14 53. Ke2 Ra1) 53. Rxh5 $18 {[%emt 0:00:00]} Rxa2 {[%emt 0:00:05]} 54. Rxc5 {[%emt 0:00:00]} Kxf3 $2 {[%emt 0:00:13]} (54... Rh2 {might work better.} 55. h5 (55. Rxc7 Rxh4 56. Rd7 Ke5 $14) 55... Kxf3 56. Rxa5 (56. Rxc7 Rxh5 57. Rf7+ Kg3 $16) 56... Rh1) 55. Rxc7 $18 {[%emt 0:00:00]} Kf4 {[%emt 0:00:36]} 56. Rc5 {[%emt 0:00:00]} a4 {[%emt 0:00:23]} 57. Ra5 {[%emt 0:00:00]} a3 {[%emt 0:00:07]} 58. Kc3 {[%emt 0:00:00]} Ke4 {[%emt 0:00:19]} 59. h5 {[%emt 0:01:23]} Ra1 {[%emt 0:01:29]} 60. h6 {[%emt 0:02:58]} Rh1 {[%emt 0:00:09]} 61. Rxa3 {[%emt 0:00:26]} Rxh6 {[%emt 0:00:08]} 62. Ra8 {[%emt 0:00:07]} Ke5 {[%emt 0:01:07]} 63. Rd8 {[%emt 0:00:50]} Ke6 {[%emt 0:00:51] [#]} 64. Kb4 $1 {[%emt 0:00:23]} Rh1 {[%emt 0:00:30]} 65. Kb5 {[%emt 0:00:12]} Ke7 {[%emt 0:00:31]} 66. Rd2 {[%emt 0:00:13]} Rb1+ {[%emt 0:00:37]} 1-0

[Event "45th FIDE Womens Olympiad 2024"]
[Site "Budapest"]
[Date "2024.09.15"]
[Round "5.13"]
[White "Swaminathan, Laia"]
[Black "Bouzana, Christina"]
[Result "1-0"]
[ECO "E11"]
[WhiteElo "1620"]
[BlackElo "1644"]
[PlyCount "81"]
[EventDate "2024.09.05"]
[EventType "team-tourn"]
[EventCountry "HUN"]
[WhiteTeam "Cayman Islands"]
[BlackTeam "Cyprus"]
[WhiteTeamCountry "CAY"]
[BlackTeamCountry "CYP"]
[TimeControl "40/5400+30:1800+30"]

1. d4 Nf6 2. Nf3 e6 3. c4 Bb4+ 4. Bd2 Qe7 5. a3 Bxd2+ 6. Nbxd2 d6 7. e3 O-O 8. Bd3 e5 9. Qc2 Re8 10. dxe5 dxe5 11. Be2 Nbd7 12. O-O b6 13. Rfd1 Bb7 14. Nf1 a5 15. Ng3 g6 16. Nd2 a4 17. Bf3 Bxf3 18. Nxf3 Nc5 19. Nd2 Nfd7 20. Ne2 Red8 21. Nc3 c6 22. Na2 Nf6 23. Nb4 Qc7 24. Nf3 Nb3 25. Rab1 Re8 26. Nd2 Nc5 27. h3 Re6 28. Nf3 h6 29. Re1 Qe7 30. Rbd1 Nfe4 31. Nxe5 Rxe5 32. Nxc6 Qc7 33. Nxe5 Qxe5 34. Rd5 Qe7 35. Red1 Re8 36. Qe2 Nf6 37. Rd6 Nfd7 38. Qf3 Ne5 39. Qd5 Qc7 40. f4 Ned7 41. Rxg6+ 1-0

[Event "45th FIDE Womens Olympiad 2024"]
[Site "Budapest"]
[Date "2024.09.15"]
[Round "5.14"]
[White "Yip, Carissa"]
[Black "Munguntuul, Batkhuyag"]
[Result "1/2-1/2"]
[ECO "B12"]
[WhiteElo "2386"]
[BlackElo "2346"]
[Annotator "TA"]
[PlyCount "109"]
[EventDate "2024.09.05"]
[EventType "team-tourn"]
[EventCountry "HUN"]
[SourceTitle "playchess.com"]
[Source "ChessBase"]
[SourceQuality "1"]
[WhiteTeam "United States of America"]
[BlackTeam "Mongolia"]
[WhiteTeamCountry "USA"]
[BlackTeamCountry "MGL"]
[TimeControl "40/5400+30:1800+30"]

{[%evp 30,109,-110,-99,-77,-218,-109,-113,-108,-150,-147,-156,-149,-167,-166,-160,-118,-135,-49,-71,-55,-185,-120,-120,-127,-120,-126,-126,-122,-126,-120,-123,-112,-137,-145,-145,-145,-146,-134,-137,-158,-152,-133,-130,-118,-156,-151,-148,-139,-120,-150,-142,-151,-160,-140,-159,-160,-157,-165,-154,-164,-186,-101,-105,-54,-61,-39,-38,-43,-37,-8,-8,0,-86,-81,-87,-87,-91,-89,-89,-20,-20]} 1. e4 {[%emt 0:00:01]} c6 {[%emt 0:00:05]} 2. d4 {[%emt 0:00:04]} d5 {[%emt 0:00:05]} 3. e5 {[%emt 0:00:02]} Bf5 {[%emt 0:00:05]} 4. Nf3 {[%emt 0:00:34]} e6 {[%emt 0:00:08]} 5. Be2 {[%emt 0:00:03]} c5 {[%emt 0:01:01]} 6. O-O {[%emt 0:05:47]} Nc6 {[%emt 0:01:02]} 7. Be3 {[%emt 0:01:49]} cxd4 {[%emt 0:01:19]} 8. Nxd4 {[%emt 0:00:05]} Nxd4 {[%emt 0:00:11] B12: Caro-Kann: Advance Variation.} 9. Qxd4 {[%emt 0:07:23]} Ne7 {[%emt 0:00:23]} 10. Qa4+ {[%emt 0:00:42]} Nc6 {[%emt 0:00:08]} 11. c4 {[%emt 0:00:22]} d4 {[%emt 0:04:04]} 12. Rd1 {[%emt 0:02:31]} Bc5 {[%emt 0:04:47]} 13. b4 {[%emt 0:15:32]} Qh4 $146 {[%emt 0:05:14]} ({Predecessor:} 13... Bxb4 14. Bf3 Qd7 15. Bxc6 Qxc6 16. Qxb4 dxe3 17. fxe3 Rc8 18. Na3 Qc5 19. Qxc5 Rxc5 {0-1 Beikert,G (2432)-Hera,I (2533) BL2-Sued 1112 2011 (2.1)}) 14. g3 {[%emt 0:14:04]} Qe4 {[%emt 0:04:32]} 15. Bd3 {[%emt 0:17:10]} Qf3 {[%emt 0:12:19]} (15... Qxe5 16. Bf4 Qf6 17. Bxf5 (17. bxc5 Bxd3 18. Rxd3 e5 $11) 17... Qxf5 18. Qb5 $14 (18. bxc5 $14)) (15... Qg4 $1 $19) 16. Nd2 $17 {[%emt 0:02:56]} Qh5 {[%emt 0:01:22]} 17. Bf4 {[%emt 0:02:14]} (17. Bxf5 $17 Qxf5 (17... dxe3 18. Be4 $15) 18. Bh6 gxh6 19. bxc5) 17... Bxb4 {[%emt 0:14:32]} ({Better is} 17... Bxd3 $19 18. bxc5 O-O) 18. Bxf5 $17 {[%emt 0:05:38]} Qxf5 {[%emt 0:00:22]} 19. Nf3 {[%emt 0:03:56]} O-O {[%emt 0:03:48]} 20. Rab1 {[%emt 0:00:10]} (20. Nxd4 $2 Nxd4 21. Qxb4 Qe4 $19) 20... Qe4 {[%emt 0:03:53]} 21. Ng5 {[%emt 0:01:40]} Qe2 {[%emt 0:00:42]} 22. Qb3 {[%emt 0:03:48]} Bc3 {[%emt 0:12:07]} 23. Qxb7 {[%emt 0:00:22]} Nxe5 {[%emt 0:00:31]} (23... Qxc4 $17 {[%cal Oh7h6] Threatens to win with ...h6!} 24. Qb5 Qxb5 (24... Qxa2 25. Qxc6 g6 26. Nxf7 $18) 25. Rxb5 Rfb8) 24. c5 {[%emt 0:05:08]} d3 {[%emt 0:14:00]} 25. Ne4 {[%emt 0:05:42]} (25. Qe4 $15 f5 26. Qa4) 25... Bd4 {[%emt 0:03:00]} (25... Nf3+ $19 26. Kg2 Ne1+ 27. Kg1 Ba5 (27... Nf3+ 28. Kg2 $19)) 26. Bxe5 $17 {[%emt 0:03:56]} Bxe5 {[%emt 0:00:07]} 27. Rd2 {[%emt 0:01:10]} Rab8 $1 {[%emt 0:03:03]} (27... Qf3 28. Nd6 Qxb7 29. Rxb7 $15 (29. Nxb7 Rfc8 $14)) 28. Rxe2 {[%emt 0:00:05]} (28. Qxb8 $2 Rxb8 29. Rxb8+ Bxb8 $19) 28... Rxb7 {[%emt 0:02:54]} 29. Ree1 {[%emt 0:00:01]} Rxb1 {[%emt 0:00:38]} 30. Rxb1 {[%emt 0:00:01]} f5 {[%emt 0:00:25]} 31. Ng5 {[%emt 0:00:53]} h6 {[%emt 0:08:15]} 32. Nxe6 {[%emt 0:00:14]} Re8 {[%emt 0:00:13]} 33. Nf4 {[%emt 0:00:04]} d2 $1 {[%emt 0:00:51]} 34. Kf1 {[%emt 0:00:33]} Bc3 $1 {[%emt 0:00:33]} 35. Ne2 {[%emt 0:00:04]} Ba5 {[%emt 0:00:32]} 36. Rd1 {[%emt 0:01:03]} Kf7 {[%emt 0:00:23]} (36... Rc8 $6 37. Nd4 $11) 37. c6 {[%emt 0:00:54]} Kf6 {[%emt 0:00:19]} 38. c7 {[%emt 0:00:12] [#]} Rc8 $1 {[%emt 0:00:06]} (38... Bxc7 $6 39. Rxd2 Rd8 40. Rc2 $11) 39. Nd4 {[%emt 0:01:44]} ({Wrong is} 39. Nf4 $2 g5 (39... Bxc7 40. Nd5+ Ke6 41. Nxc7+ Rxc7 42. Rxd2 $11) (39... Ke5 $2 40. Ke2 $19) 40. Nd3 Rxc7 $19) 39... Rxc7 {[%emt 0:00:18]} (39... Bxc7 40. Rxd2 Bb6 41. Ne2) 40. Nb3 {[%emt 0:00:02] [#]} Bb4 $1 {[%emt 0:00:29]} 41. Nxd2 {[%emt 0:31:07]} Rc2 {[%emt 0:30:23]} 42. Nb3 {[%emt 0:00:37]} Rxa2 {[%emt 0:01:10]} 43. Rd5 {[%emt 0:00:04]} g6 {[%emt 0:00:00]} 44. Rb5 {[%emt 0:00:00]} a5 {[%emt 0:00:00]} 45. h3 {[%emt 0:00:00]} Ra3 {[%emt 0:00:00]} ({Black should try} 45... Ke7 $19 {Hoping for ...Kd6.} 46. h4 h5) 46. Nd4 $17 {[%emt 0:00:00]} Rc3 {[%emt 0:00:00]} (46... Ra1+ $17 47. Ke2 Bd6) 47. Rb6+ $15 {[%emt 0:00:00]} Kg7 {[%emt 0:00:00]} 48. Ra6 {[%emt 0:00:00]} Rd3 {[%emt 0:00:00]} 49. Nc6 {[%emt 0:00:00]} f4 {[%emt 0:00:00]} 50. gxf4 {[%emt 0:00:00]} Rf3 {[%emt 0:00:00]} 51. Kg2 {[%emt 0:00:00]} (51. Ra7+ $11 {keeps the balance.} Kg8 52. Ra8+ Kg7 53. Ra7+ Kf6 54. Ra6) 51... Rxf4 $17 {[%emt 0:00:00]} 52. Nxa5 {[%emt 0:00:00]} Bc5 {[%emt 0:00:00]} 53. Nb7 {[%emt 0:00:00]} Rxf2+ {[%emt 0:00:40]} ({Of course not} 53... Bxf2 54. Nd8 Rf5 55. Nc6 $15) 54. Kg3 {[%emt 0:00:00]} Rf5 {[%emt 0:00:02]} ({Black should play} 54... Bd4 $17) 55. Nxc5 {[%emt 0:00:00]} 1/2-1/2

[Event "45th FIDE Womens Olympiad 2024"]
[Site "Budapest"]
[Date "2024.09.15"]
[Round "5.14"]
[White "Sokolova, Larisa"]
[Black "Majid, Zara"]
[Result "1/2-1/2"]
[ECO "B07"]
[WhiteElo "1705"]
[BlackElo "1411"]
[PlyCount "96"]
[EventDate "2024.09.05"]
[EventType "team-tourn"]
[EventCountry "HUN"]
[WhiteTeam "Cyprus"]
[BlackTeam "Cayman Islands"]
[WhiteTeamCountry "CYP"]
[BlackTeamCountry "CAY"]
[TimeControl "40/5400+30:1800+30"]

1. e4 d6 2. Nc3 Nf6 3. d4 g6 4. Bc4 Bg7 5. Nge2 O-O 6. O-O Nxe4 7. Nxe4 d5 8. Bd3 dxe4 9. Bxe4 c6 10. c3 Nd7 11. Bg5 h6 12. Be3 Nf6 13. Bc2 Nd5 14. Nf4 Nxe3 15. fxe3 e5 16. Nd3 Qg5 17. Qf3 Be6 18. Nc5 exd4 19. exd4 Bd5 20. Ne4 Qe7 21. Qd3 b5 22. b3 Qxe4 23. Qxe4 Bxe4 24. Bxe4 Rac8 25. Rac1 Rfe8 26. Bf3 b4 27. Rfd1 Red8 28. Kf1 bxc3 29. Rxc3 Rxd4 30. Rxd4 Bxd4 31. Rxc6 Rxc6 32. Bxc6 Bc5 33. Ke2 Bb4 34. Kd3 Kf8 35. Kc4 a5 36. Kb5 Ke7 37. a3 Bxa3 38. Kxa5 Bd6 39. h3 f5 40. b4 g5 41. Bf3 Kf6 42. b5 Ke5 43. b6 Kf4 44. b7 g4 45. hxg4 fxg4 46. Bc6 h5 47. Kb6 Bb8 48. Kc5 g3 1/2-1/2

[Event "45th FIDE Womens Olympiad 2024"]
[Site "Budapest"]
[Date "2024.09.15"]
[Round "5.15"]
[White "Nomin-Erdene, Davaademberel"]
[Black "Krush, Irina"]
[Result "1/2-1/2"]
[ECO "A37"]
[WhiteElo "2319"]
[BlackElo "2396"]
[Annotator "TA"]
[PlyCount "87"]
[EventDate "2024.09.05"]
[EventType "team-tourn"]
[EventCountry "HUN"]
[SourceTitle "playchess.com"]
[Source "ChessBase"]
[SourceQuality "1"]
[WhiteTeam "Mongolia"]
[BlackTeam "United States of America"]
[WhiteTeamCountry "MGL"]
[BlackTeamCountry "USA"]
[TimeControl "40/5400+30:1800+30"]

{[%evp 10,87,10,0,20,14,0,-1,0,-27,-18,-39,-30,-31,-20,-20,-33,-24,-8,-16,0,-15,24,5,24,-13,31,0,27,23,50,32,27,26,32,0,0,0,0,0,0,0,42,30,30,38,38,38,38,38,38,38,38,22,39,25,38,25,38,24,38,31,38,0,40,0,19,0,38,27,37,0,40,0,22,0,39,32,39,0]} 1. Nf3 {[%emt 0:00:04]} c5 {[%emt 0:00:38]} 2. c4 {[%emt 0:00:16]} Nc6 {[%emt 0:00:11]} 3. g3 {[%emt 0:00:06]} g6 {[%emt 0:00:21]} 4. Bg2 {[%emt 0:00:35]} Bg7 {[%emt 0:00:10]} 5. Nc3 {[%emt 0:00:42]} d6 {[%emt 0:00:33]} 6. d3 {[%emt 0:01:30]} Bf5 {[%emt 0:00:45]} 7. h3 {[%emt 0:01:24]} e5 {[%emt 0:01:33]} 8. Be3 {[%emt 0:09:19]} Nge7 {[%emt 0:03:04] The position is equal.} 9. Qd2 {[%emt 0:00:24]} h6 {[%emt 0:16:30]} 10. Rb1 {[%emt 0:16:46]} Qd7 {[%emt 0:02:01]} 11. a3 {[%emt 0:03:54]} Rd8 {[%emt 0:04:50]} 12. b4 {[%emt 0:08:24]} b6 {[%emt 0:00:21]} 13. Qc1 {[%emt 0:21:14]} Be6 {[%emt 0:07:54]} 14. Bd2 {[%emt 0:03:18]} f5 {[%emt 0:02:32][%cal Oe5e4]} 15. h4 {[%emt 0:01:17]} Kf8 {[%emt 0:17:03]} 16. O-O {[%emt 0:13:42]} Kg8 {[%emt 0:00:44]} 17. e4 {[%emt 0:00:20]} Kh7 {[%emt 0:04:21]} 18. Nd5 {[%emt 0:00:18]} Rhf8 {[%emt 0:02:22]} 19. b5 {[%emt 0:02:23]} Nb8 {[%emt 0:05:41]} 20. Nh2 {[%emt 0:03:41]} Rde8 {[%emt 0:02:43]} 21. a4 {[%emt 0:02:31]} Qd8 {[%emt 0:00:21]} 22. a5 {[%emt 0:03:52][%cal Oh4h5]} Nxd5 {[%emt 0:00:59]} 23. exd5 {[%emt 0:03:54]} Bc8 {[%emt 0:00:27]} 24. axb6 {[%emt 0:00:04]} axb6 {[%emt 0:00:07]} 25. Ra1 {[%emt 0:00:32]} Qc7 {[%emt 0:03:03]} 26. Ra8 {[%emt 0:00:20]} Bb7 {[%emt 0:01:26]} 27. Ra7 {[%emt 0:00:05][%cal Oh4h5] And now h5! would win.} Nd7 {[%emt 0:00:06]} 28. Qc2 {[%emt 0:00:45]} Re7 {[%emt 0:11:19]} 29. Rfa1 {[%emt 0:00:30]} Nf6 {[%emt 0:02:01]} 30. Bc3 {[%emt 0:00:59]} Qd8 {[%emt 0:03:57]} 31. Qb2 {[%emt 0:02:04]} Rff7 {[%emt 0:01:01]} 32. R7a3 {[%emt 0:00:42]} Qf8 {[%emt 0:02:27]} 33. Qc2 {[%emt 0:00:19]} Re8 {[%emt 0:00:43]} 34. Ra7 {[%emt 0:00:13]} Rd7 {[%emt 0:00:45]} 35. Qb2 {[%emt 0:00:49]} Qf7 {[%emt 0:00:23]} 36. Qc2 {[%emt 0:00:38]} Kg8 {[%emt 0:00:55]} 37. Qb2 {[%emt 0:00:15]} Rde7 {[%emt 0:02:16]} 38. Qc1 {[%emt 0:00:40]} Kh8 {[%emt 0:01:51]} 39. Qd2 {[%emt 0:00:23]} Kh7 {[%emt 0:00:34]} 40. Qc1 {[%emt 0:00:24]} Kg8 {[%emt 0:00:44]} 41. R7a2 {[%emt 0:10:15]} Kh7 {[%emt 0:11:11]} 42. Ra7 {[%emt 0:02:03]} Bh8 {[%emt 0:05:24]} 43. R7a3 {[%emt 0:11:45]} Bg7 {[%emt 0:06:09]} 44. Ra7 {[%emt 0:00:47] Weighted Error Value: White=0.13 (very precise) /Black=0.13 (very precise) .  Inaccurate:     	White=9     	Black=9      OK:         	White=9     	Black=11     Best:        	---       	Black=1} 1/2-1/2

[Event "45th FIDE Womens Olympiad 2024"]
[Site "Budapest"]
[Date "2024.09.15"]
[Round "5.15"]
[White "Patil, Anvita Niranjan"]
[Black "Paunescu, Aida"]
[Result "0-1"]
[ECO "B13"]
[WhiteElo "1589"]
[BlackElo "1603"]
[PlyCount "106"]
[EventDate "2024.09.05"]
[EventType "team-tourn"]
[EventCountry "HUN"]
[WhiteTeam "Cayman Islands"]
[BlackTeam "Cyprus"]
[WhiteTeamCountry "CAY"]
[BlackTeamCountry "CYP"]
[TimeControl "40/5400+30:1800+30"]

1. e4 c6 2. d4 d5 3. exd5 cxd5 4. c3 Nc6 5. Nf3 Nf6 6. Bf4 Bf5 7. Nbd2 e6 8. Bb5 Bd6 9. Bg3 O-O 10. O-O Rc8 11. Re1 a6 12. Ba4 Na5 13. Rc1 Nc4 14. Nxc4 Rxc4 15. Bc2 Bxc2 16. Qxc2 Ne4 17. Bxd6 Qxd6 18. Ne5 Rc7 19. f3 Nf6 20. Kh1 Rfc8 21. Nd3 Nd7 22. Qb3 h6 23. Qb4 Qf8 24. g3 b6 25. Qxf8+ Kxf8 26. Kg2 Nb8 27. Kf2 Nc6 28. Ne5 Nxd4 29. Nd7+ Rxd7 30. cxd4 Rdc7 31. Rxc7 Rxc7 32. Re3 Rc4 33. Rd3 Rc2+ 34. Ke3 Rxb2 35. Rd2 Rxd2 36. Kxd2 Ke7 37. Kc3 Kd6 38. a4 f6 39. Kb4 e5 40. dxe5+ Kxe5 41. Kc3 d4+ 42. Kd3 Kd5 43. h4 b5 44. axb5 axb5 45. g4 b4 46. Kc2 Kc4 47. f4 b3+ 48. Kd2 d3 49. Kc1 Kc3 50. g5 b2+ 51. Kb1 d2 52. gxh6 d1=Q+ 53. Ka2 Qa1# {0-} 0-1